[Event "Summer Prague Open-A 2024"]
[Site "Prague"]
[Date "2024.08.05"]
[Round "5.14"]
[White "Rousek, Jan"]
[Black "Golenia, Wojciech"]
[Result "0-1"]
[Annotator "TA"]
[ECO "E19"]
[WhiteElo "2034"]
[BlackElo "2212"]
[PlyCount "50"]
[EventDate "2024.08.02"]
[EventType "swiss"]
[EventCountry "CZE"]
[SourceTitle "playchess.com"]
[Source "ChessBase"]
[SourceQuality "1"]
[TimeControl "40/5400+30:1800+30"]

{[%evp 19,50,26,28,-10,11,0,0,0,6,8,9,10,14,0,32,-41,-54,-51,-43,-46,-25,-25,-41,-34,-25,-33,-31,-64,0,-22,-28,-397,-397]} 1. d4 {[%emt 0:00:04]} Nf6 {[%emt 0:06:54]} 2. Nf3 {[%emt 0:00:10]} e6 {[%emt 0:00:22]} 3. g3 {[%emt 0:00:11]} b6 {[%emt 0:02:07]} 4. Bg2 {[%emt 0:00:47]} Bb7 {[%emt 0:00:06]} 5. O-O {[%emt 0:00:12]} Be7 {[%emt 0:00:15]} 6. c4 {[%emt 0:00:18]} O-O {[%emt 0:00:18]} 7. Nc3 {[%emt 0:00:19]} Ne4 {[%emt 0:00:33]} 8. Qc2 {[%emt 0:02:25]} Nxc3 {[%emt 0:00:35]} 9. Qxc3 {[%emt 0:00:08]} c5 {[%emt 0:00:24]} 10. Rd1 {[%emt 0:08:16]} Bf6 {[%emt 0:01:04]} 11. e3 {[%emt 0:16:47]} cxd4 {[%emt 0:08:26]} 12. Nxd4 {[%emt 0:07:07]} Bxg2 {[%emt 0:04:10]} 13. Kxg2 {[%emt 0:00:10] The position is equal.} Qc7 {[%emt 0:00:44]} 14. Qd3 {[%emt 0:13:20]} Rc8 {[%emt 0:19:22]} 15. b3 {[%emt 0:18:28]} Qb7+ {[%emt 0:08:00]} 16. e4 {[%emt 0:01:30]} Na6 {[%emt 0:01:37]} 17. f3 {[%emt 0:04:20]} (17. Qe2 $14) 17... d5 $15 {[%emt 0:01:23]} 18. exd5 {[%emt 0:03:34]} exd5 {[%emt 0:01:17]} 19. Bb2 {[%emt 0:02:44]} dxc4 {[%emt 0:09:50]} 20. bxc4 {[%emt 0:00:09]} Rd8 {[%emt 0:02:43]} 21. Rd2 {[%emt 0:01:41]} Rd7 {[%emt 0:06:15]} 22. Rad1 {[%emt 0:03:17]} Rad8 {[%emt 0:01:18]} 23. Qe3 {[%emt 0:04:00] [#] Nf5 would now be deadly.} Nc5 {[%emt 0:02:35]} ({Black should try} 23... Qc8 $1 $15 24. Qe2 Bg5) 24. Ba3 {[%emt 0:04:01]} h6 {[%emt 0:06:08] aiming for ...Bg5.} 25. Bxc5 $4 {[%emt 0:02:38][%mdl 8192]} (25. Nf5 $11 {and White stays safe.}) 25... Bg5 $1 {[%emt 0:00:38] Weighted Error Value: White=0.60/Black=0.10 (very precise) .  Loses game:     	White=1     	---        Mistake:       	White=1     	Black=1      Inaccurate:     	White=1     	Black=1      OK:         	White=4     	Black=4      Best:        	---       	Black=1      Strong:       	---       	Black=1} ({Weaker is} 25... bxc5 26. Nf5 Rxd2+ 27. Rxd2 Rxd2+ 28. Qxd2 $15) 0-1

[Event "Summer Prague Open-A 2024"]
[Site "Prague"]
[Date "2024.08.05"]
[Round "5.15"]
[White "Jun, Rudolf"]
[Black "Taborsky, Rostislav"]
[Result "1/2-1/2"]
[Annotator "TA"]
[ECO "C15"]
[WhiteElo "2198"]
[BlackElo "2051"]
[PlyCount "84"]
[EventDate "2024.08.02"]
[EventType "swiss"]
[EventCountry "CZE"]
[SourceTitle "playchess.com"]
[Source "ChessBase"]
[SourceQuality "1"]
[TimeControl "40/5400+30:1800+30"]

{[%evp 12,84,-1,-6,-6,-22,-14,-19,-16,-14,-15,-21,-13,-15,-10,-22,-11,-18,-22,-17,-13,-25,0,-9,-12,-10,-7,-5,-12,-6,-8,-7,-4,-9,-6,-9,-15,-29,-35,-45,-37,-33,-30,-37,-34,-49,-35,-108,-110,-114,-114,-106,-19,-118,-8,-12,-11,-11,-6,-28,-20,-20,-29,-31,-26,-32,-4,-7,0,0,0,0,0,0,0]} 1. e4 {[%emt 0:00:02]} e6 {[%emt 0:02:33]} 2. d4 {[%emt 0:00:48]} d5 {[%emt 0:00:08]} 3. Nc3 {[%emt 0:01:27]} Bb4 {[%emt 0:02:01]} 4. exd5 {[%emt 0:00:05]} exd5 {[%emt 0:00:04]} 5. Nf3 {[%emt 0:01:50]} Nf6 {[%emt 0:00:26]} 6. Bd2 {[%emt 0:00:49]} O-O {[%emt 0:00:46]} 7. Be2 {[%emt 0:00:23]} Re8 {[%emt 0:02:22]} 8. O-O {[%emt 0:00:31]} Bg4 {[%emt 0:06:34]} 9. h3 {[%emt 0:02:55]} Bh5 {[%emt 0:00:18]} 10. Re1 {[%emt 0:10:06]} Nbd7 {[%emt 0:14:15]} 11. a3 {[%emt 0:18:14]} Bxc3 {[%emt 0:00:59]} 12. Bxc3 {[%emt 0:01:09]} Ne4 {[%emt 0:00:14]} 13. Bd2 {[%emt 0:03:39]} Qf6 {[%emt 0:08:03]} 14. Be3 {[%emt 0:05:19][%cal Of3e5]} c6 {[%emt 0:06:39]} 15. Qd3 {[%emt 0:10:11]} Re7 {[%emt 0:05:28]} 16. Ne5 {[%emt 0:17:53]} Bxe2 {[%emt 0:09:24]} 17. Qxe2 {[%emt 0:01:50]} Rae8 {[%emt 0:21:27]} 18. Nxd7 {[%emt 0:00:47]} Rxd7 {[%emt 0:01:20]} 19. f3 {[%emt 0:00:38]} Nd6 {[%emt 0:00:19]} 20. Qd2 {[%emt 0:04:21]} Rde7 {[%emt 0:01:30]} 21. b3 {[%emt 0:02:01] Against Nc4} h5 {[%emt 0:03:22]} 22. Bf2 {[%emt 0:02:50]} Nf5 {[%emt 0:03:06]} 23. Rxe7 {[%emt 0:02:11]} Rxe7 {[%emt 0:00:04]} 24. c4 {[%emt 0:02:11]} dxc4 {[%emt 0:03:04]} 25. bxc4 {[%emt 0:00:32]} c5 {[%emt 0:00:25]} 26. Rd1 {[%emt 0:05:08]} Nxd4 {[%emt 0:00:21]} 27. Bxd4 {[%emt 0:05:17]} cxd4 {[%emt 0:00:04]} (27... Qxd4+ 28. Qxd4 cxd4 29. Rxd4 $11) 28. Qxd4 $15 {[%emt 0:00:51][%mdl 4096] Endgame. KQR-KQR} Re1+ {[%emt 0:00:07]} 29. Kf2 {[%emt 0:00:30]} ({Better is} 29. Kh2 $1 $15 Rxd1 30. Qxd1) 29... Rxd1 $17 {[%emt 0:00:07]} 30. Qxd1 {[%emt 0:00:04] KQ-KQ} Qh4+ {[%emt 0:00:08]} 31. Ke3 {[%emt 0:00:39]} Qxc4 {[%emt 0:00:27]} (31... Qg5+ $17 32. Kf2 Qh4+ 33. Kg1 Qxc4) 32. Qd8+ $1 $11 {[%emt 0:00:28]} Kh7 {[%emt 0:00:17]} 33. Qa5 {[%emt 0:00:46] Prevents Qc5+.} Qc1+ {[%emt 0:06:46]} 34. Kf2 {[%emt 0:00:33]} Qb2+ {[%emt 0:01:32]} 35. Kf1 {[%emt 0:00:28]} Qa1+ {[%emt 0:01:42]} 36. Ke2 $1 {[%emt 0:00:32]} Qa2+ {[%emt 0:00:31]} 37. Kf1 {[%emt 0:00:29]} Qc4+ {[%emt 0:00:34]} 38. Ke1 $1 {[%emt 0:00:30]} Qh4+ {[%emt 0:00:21]} 39. Ke2 {[%emt 0:00:30] The position is equal.} a6 {[%emt 0:00:57]} 40. Qf5+ {[%emt 0:00:04]} Kg8 {[%emt 0:01:03]} 41. Qc8+ {[%emt 0:30:08]} Kh7 {[%emt 0:30:08]} 42. Qf5+ {[%emt 0:00:00]} Kg8 {[%emt 0:00:00] Weighted Error Value: White=0.05 (flawless) /Black=0.08 (flawless) .  Mistake:       	White=1     	Black=1      Inaccurate:     	---       	Black=2      OK:         	White=12    	Black=14     Best:        	White=4     	Black=4      Strong:       	White=3     	---} 1/2-1/2

[Event "Summer Prague Open-A 2024"]
[Site "Prague"]
[Date "2024.08.05"]
[Round "5.16"]
[White "Czaeczine, Anne"]
[Black "Cichon, Bartlomiej"]
[Result "1-0"]
[Annotator "RC"]
[ECO "B99"]
[WhiteElo "2172"]
[BlackElo "1992"]
[PlyCount "81"]
[EventDate "2024.08.02"]
[EventType "swiss"]
[EventCountry "CZE"]
[SourceTitle "playchess.com"]
[Source "ChessBase"]
[SourceQuality "1"]
[TimeControl "40/5400+30:1800+30"]

1. e4 {[%emt 0:00:02]} c5 {[%emt 0:00:06]} 2. Nf3 {[%emt 0:00:07]} d6 {[%emt 0:00:06]} 3. d4 {[%emt 0:00:03]} cxd4 {[%emt 0:00:04]} 4. Nxd4 {[%emt 0:00:03]} Nf6 {[%emt 0:00:06]} 5. Nc3 {[%emt 0:00:03]} a6 {[%emt 0:00:03]} 6. Bg5 {[%emt 0:00:27]} e6 {[%emt 0:00:10]} 7. f4 {[%emt 0:00:04]} Be7 {[%emt 0:00:03]} 8. Qf3 {[%emt 0:00:06]} Qc7 {[%emt 0:00:06]} 9. O-O-O {[%emt 0:00:08]} Nbd7 {[%emt 0:00:22]} 10. g4 {[%emt 0:01:06]} h6 {[%emt 0:00:29]} 11. Bxf6 {[%emt 0:00:26]} Bxf6 {[%emt 0:00:06]} 12. h4 {[%emt 0:00:47]} Nb6 {[%emt 0:00:40]} 13. g5 {[%emt 0:00:17]} Bxd4 {[%emt 0:00:06]} 14. Rxd4 {[%emt 0:00:03]} Qc5 {[%emt 0:00:07]} 15. Rd2 {[%emt 0:00:25]} Bd7 {[%emt 0:00:27]} 16. Be2 {[%emt 0:00:29]} Na4 {[%emt 0:01:02]} 17. Nxa4 {[%emt 0:06:38]} Bxa4 {[%emt 0:00:06]} 18. Rh3 {[%emt 0:00:08]} Bc6 {[%emt 0:15:28]} 19. Rg3 {[%emt 0:24:00]} hxg5 {[%emt 0:23:23]} 20. Rxg5 {[%emt 0:07:42]} Qb4 {[%emt 0:01:11]} 21. Qf2 {[%emt 0:07:21]} g6 {[%emt 0:16:01]} 22. f5 {[%emt 0:12:29]} gxf5 {[%emt 0:07:36]} 23. exf5 {[%emt 0:00:05]} e5 {[%emt 0:06:48]} 24. Rg4 {[%emt 0:14:11]} Qc5 {[%emt 0:05:54]} 25. Qxc5 {[%emt 0:06:41]} dxc5 {[%emt 0:00:09]} 26. h5 {[%emt 0:01:41]} Rd8 {[%emt 0:06:41]} 27. f6 {[%emt 0:00:50]} Rxd2 {[%emt 0:05:03]} 28. Kxd2 {[%emt 0:00:04]} Rh6 {[%emt 0:00:52]} 29. Rg5 {[%emt 0:01:47]} e4 {[%emt 0:01:21]} 30. Rf5 {[%emt 0:01:35]} Kd7 {[%emt 0:09:57]} 31. Bc4 {[%emt 0:01:27]} Kd6 {[%emt 0:00:03]} 32. Bxf7 {[%emt 0:02:41]} Bd7 {[%emt 0:00:28]} 33. Rf4 {[%emt 0:03:10]} Ke5 {[%emt 0:00:17]} 34. Ke3 {[%emt 0:00:12]} Bf5 {[%emt 0:01:32]} 35. Bg6 {[%emt 0:01:07]} Bxg6 {[%emt 0:00:23]} 36. hxg6 {[%emt 0:00:04]} Rh3+ {[%emt 0:00:33]} 37. Ke2 {[%emt 0:01:52]} Kxf4 {[%emt 0:00:14]} 38. f7 {[%emt 0:00:32]} Rh2+ {[%emt 0:00:53]} 39. Kf1 {[%emt 0:00:19]} Ke3 {[%emt 0:00:33]} 40. f8=Q {[%emt 0:00:16]} Rxc2 {[%emt 0:00:21]} 41. g7 {[%emt 0:30:46]} 1-0

[Event "Summer Prague Open-A 2024"]
[Site "Prague"]
[Date "2024.08.05"]
[Round "5.17"]
[White "Dome, Michal"]
[Black "Persson, Andreas"]
[Result "0-1"]
[Annotator "NA RC"]
[ECO "E04"]
[WhiteElo "1965"]
[BlackElo "2139"]
[PlyCount "64"]
[EventDate "2024.08.02"]
[EventType "swiss"]
[EventCountry "CZE"]
[SourceTitle "playchess.com"]
[Source "ChessBase"]
[SourceQuality "1"]
[TimeControl "40/5400+30:1800+30"]

1. d4 {[%emt 0:00:04]} d5 {[%emt 0:00:16]} 2. c4 {[%emt 0:00:07]} e6 {[%emt 0:00:21]} 3. Nf3 {[%emt 0:00:15]} Nf6 {[%emt 0:00:22]} 4. g3 {[%emt 0:00:23]} dxc4 {[%emt 0:00:30]} 5. Bg2 {[%emt 0:00:06]} c5 {[%emt 0:00:35]} 6. O-O {[%emt 0:00:07]} Nc6 {[%emt 0:00:24]} 7. Ne5 {[%emt 0:01:01]} Bd7 {[%emt 0:00:37]} 8. Na3 {[%emt 0:01:25]} cxd4 {[%emt 0:00:39]} 9. Naxc4 {[%emt 0:00:18]} Be7 {[%emt 0:01:39]} 10. Bf4 {[%emt 0:00:51]} Rc8 {[%emt 0:07:08]} 11. Nxd7 {[%emt 0:02:09]} Qxd7 {[%emt 0:01:06]} 12. Ne5 {[%emt 0:00:22]} Qd8 {[%emt 0:10:59]} 13. Qa4 {[%emt 0:06:11]} Qb6 {[%emt 0:05:40]} 14. Rfd1 {[%emt 0:11:00]} O-O {[%emt 0:04:12]} 15. Nxc6 {[%emt 0:02:09]} bxc6 {[%emt 0:00:22]} 16. Be5 {[%emt 0:05:19]} c5 {[%emt 0:03:00]} 17. b4 {[%emt 0:00:55]} cxb4 {[%emt 0:09:51]} 18. Bxd4 {[%emt 0:00:34]} Bc5 {[%emt 0:00:29]} 19. Bxc5 {[%emt 0:01:45]} Rxc5 {[%emt 0:02:55]} 20. Rab1 {[%emt 0:03:32]} Rb5 {[%emt 0:03:25]} 21. Rbc1 {[%emt 0:06:17]} Ra5 {[%emt 0:02:48]} 22. Qb3 {[%emt 0:00:37]} h6 {[%emt 0:06:54]} 23. Rc4 {[%emt 0:03:42]} Rb5 {[%emt 0:03:27]} 24. e3 {[%emt 0:06:14]} a5 {[%emt 0:00:52]} 25. Rc6 {[%emt 0:00:40]} Qb8 {[%emt 0:00:44]} 26. Ra6 {[%emt 0:03:52]} Rc5 {[%emt 0:01:57]} 27. h3 {[%emt 0:08:11]} Rc3 {[%emt 0:01:59]} 28. Qb1 {[%emt 0:01:36]} Qc7 {[%emt 0:00:31]} 29. Kh2 {[%emt 0:01:21]} h5 {[%emt 0:02:03]} 30. h4 {[%emt 0:03:42]} Qe5 {[%emt 0:04:29]} 31. Rd4 {[%emt 0:01:53]} Ng4+ {[%emt 0:04:04]} 32. Kg1 {[%emt 0:00:02]} Rxe3 {[%emt 0:02:40]} 0-1

[Event "Summer Prague Open-A 2024"]
[Site "Prague"]
[Date "2024.08.05"]
[Round "5.18"]
[White "Patil Harshal"]
[Black "Zhakan, Erasyl"]
[Result "1/2-1/2"]
[Annotator "NA RC"]
[ECO "E04"]
[WhiteElo "2130"]
[BlackElo "1962"]
[PlyCount "31"]
[EventDate "2024.08.02"]
[EventType "swiss"]
[EventCountry "CZE"]
[SourceTitle "playchess.com"]
[Source "ChessBase"]
[SourceQuality "1"]
[TimeControl "40/5400+30:1800+30"]

1. d4 {[%emt 0:00:03]} Nf6 2. c4 {[%emt 0:01:38]} e6 {[%emt 0:02:15]} 3. g3 {[%emt 0:00:19]} d5 {[%emt 0:00:08]} 4. Bg2 {[%emt 0:00:06]} dxc4 {[%emt 0:00:07]} 5. Nf3 {[%emt 0:01:28]} Nc6 {[%emt 0:00:02]} 6. O-O {[%emt 0:00:13]} Rb8 {[%emt 0:00:06]} 7. a4 {[%emt 0:17:16]} b6 {[%emt 0:00:06]} 8. Bf4 {[%emt 0:06:43]} Bb7 {[%emt 0:01:30]} 9. Qc2 {[%emt 0:06:16]} Na5 {[%emt 0:03:16]} 10. Nbd2 {[%emt 0:01:28]} Nd5 {[%emt 0:10:19]} 11. Nxc4 {[%emt 0:16:39]} Nb4 {[%emt 0:09:19]} 12. Qc3 {[%emt 0:00:45]} Nd5 {[%emt 0:01:02]} 13. Qc2 {[%emt 0:00:23]} Nb4 {[%emt 0:01:09]} 14. Qc3 {[%emt 0:00:53]} Nd5 {[%emt 0:00:14]} 15. Qc2 {[%emt 0:00:12]} Nb4 {[%emt 0:02:53]} 16. Qc3 {[%emt 0:00:31]} 1/2-1/2

[Event "Summer Prague Open-A 2024"]
[Site "Prague"]
[Date "2024.08.05"]
[Round "5.19"]
[White "Alimbetov, Dias"]
[Black "Soural, Jan"]
[Result "1/2-1/2"]
[Annotator "NA RC"]
[ECO "A04"]
[WhiteElo "1887"]
[BlackElo "2130"]
[PlyCount "64"]
[EventDate "2024.08.02"]
[EventType "swiss"]
[EventCountry "CZE"]
[SourceTitle "playchess.com"]
[Source "ChessBase"]
[SourceQuality "1"]
[TimeControl "40/5400+30:1800+30"]

1. Nf3 {[%emt 0:03:24]} c5 {[%emt 0:01:10]} 2. c4 {[%emt 0:00:35]} Nf6 {[%emt 0:02:20]} 3. Nc3 {[%emt 0:01:33]} e6 {[%emt 0:05:34]} 4. e4 {[%emt 0:07:51]} Nc6 {[%emt 0:05:12]} 5. Bd3 {[%emt 0:04:48]} Be7 {[%emt 0:03:36]} 6. O-O {[%emt 0:02:24]} d6 {[%emt 0:01:21]} 7. a3 {[%emt 0:05:31]} O-O {[%emt 0:01:19]} 8. Re1 {[%emt 0:04:22]} b6 {[%emt 0:03:27]} 9. Bf1 {[%emt 0:04:40]} e5 {[%emt 0:07:20]} 10. h3 {[%emt 0:01:03]} Nd4 {[%emt 0:06:11]} 11. d3 {[%emt 0:04:56]} Nxf3+ {[%emt 0:11:12]} 12. Qxf3 {[%emt 0:01:04]} Ne8 {[%emt 0:02:26]} 13. Nd5 {[%emt 0:08:45]} Bg5 {[%emt 0:01:14]} 14. b4 {[%emt 0:03:42]} Bxc1 {[%emt 0:00:29]} 15. Raxc1 {[%emt 0:00:06]} Nc7 {[%emt 0:01:46]} 16. bxc5 {[%emt 0:02:37]} bxc5 {[%emt 0:08:30]} 17. Rb1 {[%emt 0:01:29]} Nxd5 {[%emt 0:02:37]} 18. exd5 {[%emt 0:02:49]} Qa5 {[%emt 0:04:17]} 19. Ra1 {[%emt 0:03:40]} Rb8 {[%emt 0:00:28]} 20. Qd1 {[%emt 0:00:39]} Bd7 {[%emt 0:06:32]} 21. Qc1 {[%emt 0:00:57]} Rb3 {[%emt 0:01:17]} 22. f4 {[%emt 0:02:50]} f6 {[%emt 0:01:17]} 23. fxe5 {[%emt 0:02:31]} fxe5 {[%emt 0:00:14]} 24. Be2 {[%emt 0:02:00]} h6 {[%emt 0:05:35]} 25. Rf1 {[%emt 0:01:28]} Rxf1+ {[%emt 0:14:25]} 26. Qxf1 {[%emt 0:00:15]} Rb8 27. Qc1 {[%emt 0:03:24]} Qb6 {[%emt 0:00:57]} 28. Qe3 {[%emt 0:02:30]} Rf8 {[%emt 0:00:49]} 29. Qc1 {[%emt 0:00:21]} Rb8 {[%emt 0:00:46]} 30. Qe3 {[%emt 0:00:10]} Rf8 {[%emt 0:00:05]} 31. Qc1 {[%emt 0:00:06]} Rb8 {[%emt 0:01:28]} 32. Qe3 {[%emt 0:00:23]} Rf8 {[%emt 0:00:16]} 1/2-1/2

[Event "Summer Prague Open-A 2024"]
[Site "Prague"]
[Date "2024.08.05"]
[Round "5.20"]
[White "Rozumek, Krzysztof"]
[Black "Jedlicka, Ales"]
[Result "0-1"]
[Annotator "NA RC"]
[ECO "A48"]
[WhiteElo "1784"]
[BlackElo "2126"]
[PlyCount "66"]
[EventDate "2024.08.02"]
[EventType "swiss"]
[EventCountry "CZE"]
[SourceTitle "playchess.com"]
[Source "ChessBase"]
[SourceQuality "1"]
[TimeControl "40/5400+30:1800+30"]

1. h3 {[%emt 0:00:03]} Nf6 {[%emt 0:00:36]} 2. c3 {[%emt 0:00:02]} g6 {[%emt 0:00:30]} 3. d4 {[%emt 0:00:02]} Bg7 {[%emt 0:00:16]} 4. Bf4 {[%emt 0:00:02]} d6 {[%emt 0:00:46]} 5. Nf3 {[%emt 0:00:02]} O-O {[%emt 0:00:23]} 6. e3 {[%emt 0:00:06]} Nbd7 {[%emt 0:00:20]} 7. Bc4 {[%emt 0:01:23]} c5 {[%emt 0:00:38]} 8. Nbd2 {[%emt 0:01:03]} b6 {[%emt 0:00:58]} 9. O-O {[%emt 0:00:54]} Bb7 {[%emt 0:00:10]} 10. Qb3 {[%emt 0:00:53]} h6 {[%emt 0:10:04]} 11. Rad1 {[%emt 0:04:09]} a6 {[%emt 0:00:26]} 12. Rfe1 {[%emt 0:01:44]} b5 {[%emt 0:00:53]} 13. Bf1 {[%emt 0:00:03]} Qc7 {[%emt 0:01:41]} 14. a4 {[%emt 0:01:15]} Bc6 {[%emt 0:02:45]} 15. axb5 {[%emt 0:01:12]} axb5 {[%emt 0:00:17]} 16. dxc5 {[%emt 0:01:36]} Nxc5 {[%emt 0:00:12]} 17. Qc2 {[%emt 0:03:39]} e5 {[%emt 0:04:47]} 18. Bh2 {[%emt 0:01:10]} Rfd8 {[%emt 0:00:50]} 19. Ra1 {[%emt 0:15:08]} Qb7 {[%emt 0:01:59]} 20. Rec1 {[%emt 0:01:05]} Nfe4 {[%emt 0:04:19]} 21. Qd1 {[%emt 0:06:49]} Nxd2 {[%emt 0:07:20]} 22. Nxd2 {[%emt 0:00:05]} Kh7 {[%emt 0:08:39]} 23. b4 {[%emt 0:09:04]} Ne6 {[%emt 0:00:45]} 24. Nb3 {[%emt 0:00:13]} Rxa1 {[%emt 0:08:46]} 25. Rxa1 {[%emt 0:00:50]} Qb6 {[%emt 0:00:48]} 26. Ra5 {[%emt 0:01:09]} f5 {[%emt 0:01:56]} 27. Qa1 {[%emt 0:01:21]} Nc7 {[%emt 0:00:23]} 28. Ra7 {[%emt 0:00:36]} Ra8 {[%emt 0:04:54]} 29. Rxa8 {[%emt 0:01:33]} Bxa8 {[%emt 0:00:14]} 30. Qa5 {[%emt 0:02:16]} Qc6 {[%emt 0:00:22]} 31. Nd2 {[%emt 0:08:49]} Qxc3 {[%emt 0:01:21]} 32. Nb1 {[%emt 0:00:01]} Qc1 {[%emt 0:02:53]} 33. Na3 {[%emt 0:00:52]} Be4 {[%emt 0:01:10]} 0-1

[Event "Summer Prague Open-A 2024"]
[Site "Prague"]
[Date "2024.08.05"]
[Round "5.21"]
[White "Swati, Mohota"]
[Black "Mirimanian, Hayk"]
[Result "1-0"]
[Annotator "NA RC"]
[ECO "D36"]
[WhiteElo "2026"]
[BlackElo "2290"]
[PlyCount "50"]
[EventDate "2024.08.02"]
[EventType "swiss"]
[EventCountry "CZE"]
[SourceTitle "playchess.com"]
[Source "ChessBase"]
[SourceQuality "1"]
[TimeControl "40/5400+30:1800+30"]

1. d4 {[%emt 0:00:03]} d5 {[%emt 0:00:30]} 2. c4 {[%emt 0:00:03]} e6 {[%emt 0:00:09]} 3. Nc3 {[%emt 0:00:05]} Nf6 {[%emt 0:00:38]} 4. cxd5 {[%emt 0:00:05]} exd5 {[%emt 0:00:05]} 5. Bg5 {[%emt 0:00:04]} c6 {[%emt 0:00:46]} 6. Qc2 {[%emt 0:00:14]} Bd6 {[%emt 0:01:02]} 7. e3 {[%emt 0:00:05]} O-O {[%emt 0:00:41]} 8. Bd3 {[%emt 0:00:04]} h6 {[%emt 0:00:19]} 9. Bh4 {[%emt 0:00:05]} Re8 {[%emt 0:00:33]} 10. Nge2 {[%emt 0:00:06]} a5 {[%emt 0:01:04]} 11. h3 {[%emt 0:03:02]} Na6 {[%emt 0:00:46]} 12. a3 {[%emt 0:00:05]} Nc7 {[%emt 0:00:33]} 13. O-O {[%emt 0:03:06]} Ne6 {[%emt 0:00:56]} 14. f3 {[%emt 0:06:22]} Ng5 {[%emt 0:05:02]} 15. e4 {[%emt 0:18:31]} Nfxe4 {[%emt 0:05:01]} 16. fxe4 {[%emt 0:25:55]} Nxh3+ {[%emt 0:00:59]} 17. gxh3 {[%emt 0:00:04]} Qxh4 {[%emt 0:00:07]} 18. e5 {[%emt 0:04:41]} Rxe5 {[%emt 0:03:01]} 19. Bh7+ {[%emt 0:07:36]} Kh8 {[%emt 0:04:50]} 20. Ne4 {[%emt 0:00:14]} Rxe4 {[%emt 0:25:05]} 21. Bxe4 {[%emt 0:00:36]} dxe4 {[%emt 0:00:22]} 22. Nc3 {[%emt 0:06:52]} Bxh3 {[%emt 0:04:53]} 23. Nxe4 {[%emt 0:02:21]} Qg4+ {[%emt 0:02:17]} 24. Kh1 {[%emt 0:00:28]} Bxf1 {[%emt 0:07:55]} 25. Rxf1 {[%emt 0:00:06]} Bf4 {[%emt 0:00:30]} 1-0

[Event "Summer Prague Open-A 2024"]
[Site "Prague"]
[Date "2024.08.05"]
[Round "5.22"]
[White "Cilia Vincenti, David"]
[Black "Flajsman, Pavel"]
[Result "1/2-1/2"]
[Annotator "NA RC"]
[ECO "D56"]
[WhiteElo "2023"]
[BlackElo "2188"]
[PlyCount "108"]
[EventDate "2024.08.02"]
[EventType "swiss"]
[EventCountry "CZE"]
[SourceTitle "playchess.com"]
[Source "ChessBase"]
[SourceQuality "1"]
[TimeControl "40/5400+30:1800+30"]

1. c4 {[%emt 0:00:04]} e6 {[%emt 0:00:04]} 2. Nc3 {[%emt 0:00:07]} d5 {[%emt 0:00:05]} 3. d4 {[%emt 0:00:09]} Nf6 {[%emt 0:00:05]} 4. Bg5 {[%emt 0:00:08]} Be7 {[%emt 0:02:27]} 5. e3 {[%emt 0:00:20]} O-O {[%emt 0:00:23]} 6. Nf3 {[%emt 0:00:11]} h6 {[%emt 0:01:08]} 7. Bh4 {[%emt 0:00:11]} c6 {[%emt 0:00:46]} 8. Qc2 {[%emt 0:00:35]} Nbd7 {[%emt 0:02:33]} 9. a3 {[%emt 0:00:36]} a6 {[%emt 0:15:08]} 10. Rd1 {[%emt 0:11:07]} dxc4 {[%emt 0:08:27]} 11. Bxc4 {[%emt 0:00:51]} Nd5 {[%emt 0:00:06]} 12. Bxe7 {[%emt 0:01:37]} Qxe7 {[%emt 0:00:17]} 13. Ne4 {[%emt 0:02:19]} e5 {[%emt 0:20:44]} 14. O-O {[%emt 0:32:46]} exd4 {[%emt 0:03:09]} 15. Nxd4 {[%emt 0:04:07]} N7f6 {[%emt 0:06:40]} 16. Nxf6+ {[%emt 0:05:38]} Nxf6 {[%emt 0:00:03]} 17. h3 {[%emt 0:02:14]} c5 {[%emt 0:01:18]} 18. Nf5 {[%emt 0:02:20]} Bxf5 {[%emt 0:01:50]} 19. Qxf5 {[%emt 0:00:05]} b5 {[%emt 0:00:29]} 20. Be2 {[%emt 0:01:08]} c4 {[%emt 0:07:05]} 21. Rd4 {[%emt 0:01:46]} Rac8 {[%emt 0:12:42]} 22. Rfd1 {[%emt 0:11:40]} Qc5 {[%emt 0:01:29]} 23. Qxc5 {[%emt 0:03:28]} Rxc5 {[%emt 0:00:02]} 24. a4 {[%emt 0:01:42]} Rfc8 {[%emt 0:02:16]} 25. Rd8+ {[%emt 0:06:48]} Rxd8 {[%emt 0:00:51]} 26. Rxd8+ {[%emt 0:00:02]} Kh7 {[%emt 0:00:06]} 27. Rd6 {[%emt 0:01:30]} b4 {[%emt 0:05:33]} 28. Rxa6 {[%emt 0:02:22]} Nd5 {[%emt 0:00:39]} 29. Bf3 {[%emt 0:02:19]} c3 {[%emt 0:04:04]} 30. bxc3 {[%emt 0:01:08]} Nxc3 {[%emt 0:04:21]} 31. Rb6 {[%emt 0:01:22]} Na2 {[%emt 0:00:36]} 32. Rb5 {[%emt 0:02:01]} Rc1+ {[%emt 0:00:26]} 33. Kh2 {[%emt 0:00:03]} Rc3 {[%emt 0:00:32]} 34. Bd5 {[%emt 0:00:56]} Ra3 {[%emt 0:00:06]} 35. Bxf7 {[%emt 0:01:15]} Rxa4 {[%emt 0:00:25]} 36. Bxa2 {[%emt 0:01:58]} Rxa2 {[%emt 0:00:02]} 37. Kg3 {[%emt 0:01:21]} Rb2 {[%emt 0:00:04]} 38. f3 {[%emt 0:00:34]} Kg6 {[%emt 0:00:18]} 39. f4 {[%emt 0:00:25]} b3 {[%emt 0:00:20]} 40. Kf3 {[%emt 0:00:20]} Rb1 {[%emt 0:00:30]} 41. g4 {[%emt 0:30:38]} b2 {[%emt 0:02:51]} 42. Rb6+ {[%emt 0:00:00]} Kf7 {[%emt 0:03:36]} 43. Ke4 {[%emt 0:00:00]} Rh1 {[%emt 0:05:11]} 44. Rxb2 {[%emt 0:00:00]} Rxh3 {[%emt 0:00:02]} 45. Rb3 {[%emt 0:00:00]} Rg3 {[%emt 0:00:51]} 46. Kf5 {[%emt 0:00:00]} g6+ {[%emt 0:03:02]} 47. Ke5 {[%emt 0:00:00]} Rxg4 {[%emt 0:00:47]} 48. Rb7+ {[%emt 0:00:00]} Kg8 {[%emt 0:04:55]} 49. e4 {[%emt 0:00:00]} h5 {[%emt 0:03:22]} 50. f5 {[%emt 0:00:00]} gxf5 {[%emt 0:00:37]} 51. Kxf5 {[%emt 0:00:00]} Rg1 {[%emt 0:04:51]} 52. e5 {[%emt 0:00:00]} h4 {[%emt 0:01:42]} 53. Rb4 {[%emt 0:00:00]} h3 {[%emt 0:01:46]} 54. Rh4 {[%emt 0:00:00]} Rg3 {[%emt 0:01:47]} 1/2-1/2